[Event "Late-Titled-Tuesday-Blitz-June-04-2024"]
[Site "Chess.com"]
[Date "2024.06.04"]
[Round "2"]
[White "Cambek64"]
[Black "DeTimmerman"]
[Result "0-1"]
[WhiteElo "2527"]
[BlackElo "2767"]
[TimeControl "180+1"]
[EndTime "14:15:20 PDT"]
[Termination "DeTimmerman won by resignation"]

1. e4 {[%clk 0:03:00.9]} 1... e5 {[%clk 0:02:59.1]} 2. Nf3 {[%clk 0:02:59.3]}
2... Nc6 {[%clk 0:02:59.2]} 3. Bc4 {[%clk 0:02:58.1]} 3... Nf6 {[%clk
0:02:58.2]} 4. d3 {[%clk 0:02:58.3]} 4... Be7 {[%clk 0:02:58.3]} 5. Nc3 {[%clk
0:02:57.3]} 5... O-O {[%clk 0:02:59.2]} 6. a3 {[%clk 0:02:42.7]} 6... d6 {[%clk
0:02:58.1]} 7. h3 {[%clk 0:02:42.1]} 7... Kh8 {[%clk 0:02:58]} 8. Be3 {[%clk
0:02:34.6]} 8... Ng8 {[%clk 0:02:58.1]} 9. g4 {[%clk 0:02:31.1]} 9... Be6 {[%clk
0:02:58.1]} 10. Qe2 {[%clk 0:02:17.3]} 10... a6 {[%clk 0:02:56.8]} 11. O-O-O
{[%clk 0:02:16.7]} 11... b5 {[%clk 0:02:56.7]} 12. Ba2 {[%clk 0:02:16.2]} 12...
b4 {[%clk 0:02:56.3]} 13. axb4 {[%clk 0:02:15.2]} 13... Nxb4 {[%clk 0:02:57.2]}
14. Bb1 {[%clk 0:02:06.5]} 14... c5 {[%clk 0:02:57.3]} 15. g5 {[%clk 0:02:01.1]}
15... Qa5 {[%clk 0:02:55.9]} 16. Nd2 {[%clk 0:01:55.5]} 16... Rfb8 {[%clk
0:02:55.3]} 17. Nb3 {[%clk 0:01:53.9]} 17... Bxb3 {[%clk 0:02:39.5]} 18. cxb3
{[%clk 0:01:52.8]} 18... Nc6 {[%clk 0:02:40.4]} 19. Bc2 {[%clk 0:00:37.9]} 19...
Nd4 {[%clk 0:02:40.6]} 20. Qh5 {[%clk 0:00:32.8]} 20... Qa1+ {[%clk 0:02:33.3]}
21. Nb1 {[%clk 0:00:24.5]} 21... Nxb3+ {[%clk 0:02:22.6]} 22. Bxb3 {[%clk
0:00:23.2]} 22... Rxb3 {[%clk 0:02:23.5]} 23. Rd2 {[%clk 0:00:22.7]} 23... Rab8
{[%clk 0:02:05.2]} 24. Qe2 {[%clk 0:00:20.4]} 24... Bd8 {[%clk 0:02:05.6]} 25.
Rc2 {[%clk 0:00:18.6]} 25... Ne7 {[%clk 0:02:03.6]} 26. f3 {[%clk 0:00:14.1]}
26... Nc6 {[%clk 0:02:03.6]} 27. Rh2 {[%clk 0:00:14.3]} 27... Nb4 {[%clk
0:02:02.7]} 28. Rd2 {[%clk 0:00:11.2]} 28... Na2+ {[%clk 0:02:02.2]} 0-1

[Event "Late-Titled-Tuesday-Blitz-June-04-2024"]
[Site "Chess.com"]
[Date "2024.06.04"]
[Round "2"]
[White "jup1978"]
[Black "maurovargas01"]
[Result "1-0"]
[WhiteElo "2422"]
[BlackElo "1914"]
[TimeControl "180+1"]
[EndTime "14:15:27 PDT"]
[Termination "jup1978 won by resignation"]

1. e4 {[%clk 0:03:00.9]} 1... d5 {[%clk 0:02:57.4]} 2. exd5 {[%clk 0:02:59.9]}
2... Qxd5 {[%clk 0:02:56.9]} 3. Nc3 {[%clk 0:02:59.7]} 3... Qa5 {[%clk
0:02:57.2]} 4. Bc4 {[%clk 0:02:58]} 4... c6 {[%clk 0:02:56.7]} 5. d3 {[%clk
0:02:58.4]} 5... Nf6 {[%clk 0:02:55.4]} 6. Ne2 {[%clk 0:02:58.7]} 6... Be6
{[%clk 0:02:51.2]} 7. Bxe6 {[%clk 0:02:55.5]} 7... fxe6 {[%clk 0:02:52.1]} 8.
O-O {[%clk 0:02:54.4]} 8... e5 {[%clk 0:02:51.5]} 9. Ng3 {[%clk 0:02:52.7]} 9...
e6 {[%clk 0:02:50]} 10. Re1 {[%clk 0:02:51.7]} 10... Bd6 {[%clk 0:02:48.9]} 11.
Bd2 {[%clk 0:02:48.6]} 11... Qc7 {[%clk 0:02:48.3]} 12. Nce4 {[%clk 0:02:48.3]}
12... O-O {[%clk 0:02:44]} 13. Qe2 {[%clk 0:02:45.8]} 13... Nd5 {[%clk
0:02:34.1]} 14. Nxd6 {[%clk 0:02:39.5]} 14... Qxd6 {[%clk 0:02:30.5]} 15. Qxe5
{[%clk 0:02:39]} 15... Qxe5 {[%clk 0:02:23]} 16. Rxe5 {[%clk 0:02:39.9]} 16...
Re8 {[%clk 0:02:22.4]} 17. Rae1 {[%clk 0:02:37.5]} 17... Kf7 {[%clk 0:02:21.7]}
18. Nf5 {[%clk 0:02:19.4]} 18... Nd7 {[%clk 0:02:18.3]} 19. Nd6+ {[%clk
0:02:16.4]} 19... Kf8 {[%clk 0:02:07.5]} 20. Rxe6 {[%clk 0:02:05.3]} 20... Rxe6
{[%clk 0:02:07]} 21. Rxe6 {[%clk 0:02:05.5]} 21... Rb8 {[%clk 0:02:05.1]} 22. c4
{[%clk 0:02:01.6]} 22... N5f6 {[%clk 0:02:02.9]} 23. Bf4 {[%clk 0:02:01.2]}
23... b5 {[%clk 0:02:00.9]} 24. Nxb5 {[%clk 0:01:56.9]} 24... cxb5 {[%clk
0:01:56.4]} 25. Bxb8 {[%clk 0:01:55.7]} 25... Nxb8 {[%clk 0:01:56.5]} 26. cxb5
{[%clk 0:01:55]} 26... Nbd7 {[%clk 0:01:55.7]} 27. Ra6 {[%clk 0:01:53.3]} 27...
Nc5 {[%clk 0:01:43.5]} 28. Rxa7 {[%clk 0:01:48.4]} 28... Nxd3 {[%clk 0:01:37.2]}
29. b6 {[%clk 0:01:48.2]} 29... Nc5 {[%clk 0:01:33.5]} 30. b7 {[%clk 0:01:47.9]}
30... Nfd7 {[%clk 0:01:31.5]} 31. Ra8+ {[%clk 0:01:48.1]} 31... Ke7 {[%clk
0:01:30.4]} 32. b8=Q {[%clk 0:01:49]} 32... Nxb8 {[%clk 0:01:30.1]} 33. Rxb8
{[%clk 0:01:49.9]} 33... Nd7 {[%clk 0:01:29]} 34. Rb7 {[%clk 0:01:49.6]} 34...
Kd6 {[%clk 0:01:28.8]} 35. Rxd7+ {[%clk 0:01:49.2]} 35... Kxd7 {[%clk
0:01:28.9]} 36. b4 {[%clk 0:01:49.8]} 36... Kc6 {[%clk 0:01:29.1]} 37. a4 {[%clk
0:01:50.4]} 37... Kb6 {[%clk 0:01:29.1]} 38. f4 {[%clk 0:01:50.8]} 38... g6
{[%clk 0:01:28.4]} 39. Kf2 {[%clk 0:01:51.2]} 39... Kc6 {[%clk 0:01:26.3]} 40.
Kf3 {[%clk 0:01:51.6]} 40... Kd5 {[%clk 0:01:24.4]} 41. b5 {[%clk 0:01:51.3]}
41... Kc5 {[%clk 0:01:23.9]} 42. Kg4 {[%clk 0:01:51.5]} 42... h6 {[%clk
0:01:23.4]} 43. h4 {[%clk 0:01:48.5]} 43... Kb6 {[%clk 0:01:21.3]} 44. h5 {[%clk
0:01:47.8]} 44... gxh5+ {[%clk 0:01:19.5]} 45. Kxh5 {[%clk 0:01:47.9]} 45... Ka5
{[%clk 0:01:20.4]} 46. f5 {[%clk 0:01:47.6]} 46... Kxa4 {[%clk 0:01:21.3]} 47.
f6 {[%clk 0:01:48.2]} 47... Kxb5 {[%clk 0:01:21.5]} 48. f7 {[%clk 0:01:48.8]}
48... Kc6 {[%clk 0:01:15.9]} 49. f8=Q {[%clk 0:01:49.7]} 49... Kd5 {[%clk
0:01:15.3]} 50. Qxh6 {[%clk 0:01:49.4]} 50... Ke5 {[%clk 0:01:14.7]} 51. Qf8
{[%clk 0:01:49]} 51... Kd5 {[%clk 0:01:14.7]} 52. g4 {[%clk 0:01:49]} 52... Ke5
{[%clk 0:01:14.7]} 53. g5 {[%clk 0:01:49.9]} 53... Kd5 {[%clk 0:01:15]} 54. g6
{[%clk 0:01:50.8]} 54... Ke4 {[%clk 0:01:15.8]} 55. g7 {[%clk 0:01:51.7]} 55...
Ke5 {[%clk 0:01:16.7]} 56. g8=Q {[%clk 0:01:51.4]} 1-0

[Event "Late-Titled-Tuesday-Blitz-June-04-2024"]
[Site "Chess.com"]
[Date "2024.06.04"]
[Round "2"]
[White "glucolisis04"]
[Black "N_Mullodzhanov"]
[Result "0-1"]
[WhiteElo "2264"]
[BlackElo "2503"]
[TimeControl "180+1"]
[EndTime "14:15:28 PDT"]
[Termination "N_Mullodzhanov won by resignation"]

1. d4 {[%clk 0:03:00.3]} 1... Nf6 {[%clk 0:02:59.5]} 2. c4 {[%clk 0:03:00.8]}
2... g6 {[%clk 0:02:59.4]} 3. Nc3 {[%clk 0:03:00.6]} 3... Bg7 {[%clk 0:02:59.8]}
4. e4 {[%clk 0:02:59]} 4... d6 {[%clk 0:03:00.2]} 5. Nf3 {[%clk 0:02:59.6]} 5...
O-O {[%clk 0:03:00.1]} 6. Be2 {[%clk 0:03:00.3]} 6... e5 {[%clk 0:03:00.2]} 7.
O-O {[%clk 0:03:01]} 7... Nc6 {[%clk 0:03:00.5]} 8. d5 {[%clk 0:03:01.1]} 8...
Ne7 {[%clk 0:03:00.9]} 9. b4 {[%clk 0:03:01.7]} 9... a5 {[%clk 0:03:00.7]} 10.
bxa5 {[%clk 0:03:02.6]} 10... Rxa5 {[%clk 0:03:00.7]} 11. a4 {[%clk 0:03:02.5]}
11... Nd7 {[%clk 0:03:00.5]} 12. Ba3 {[%clk 0:03:01.6]} 12... b6 {[%clk
0:03:00.8]} 13. Bb4 {[%clk 0:03:01.8]} 13... Ra8 {[%clk 0:03:00.8]} 14. Nd2
{[%clk 0:02:59.4]} 14... f5 {[%clk 0:03:00.8]} 15. f3 {[%clk 0:02:55.1]} 15...
f4 {[%clk 0:02:58]} 16. Nb3 {[%clk 0:02:23.2]} 16... g5 {[%clk 0:02:56.6]} 17.
a5 {[%clk 0:02:19]} 17... bxa5 {[%clk 0:02:54.1]} 18. Nxa5 {[%clk 0:02:13.7]}
18... c5 {[%clk 0:02:43.6]} 19. dxc6 {[%clk 0:02:10.7]} 19... Qb6+ {[%clk
0:02:43.4]} 20. Kh1 {[%clk 0:01:44.3]} 20... Qxb4 {[%clk 0:02:38.7]} 21. cxd7
{[%clk 0:01:14.5]} 21... Bxd7 {[%clk 0:02:35.8]} 22. Nd5 {[%clk 0:01:13.5]}
22... Nxd5 {[%clk 0:02:34.6]} 23. Qxd5+ {[%clk 0:01:14.3]} 23... Kh8 {[%clk
0:02:34.5]} 24. Nc6 {[%clk 0:00:35.3]} 24... Bxc6 {[%clk 0:02:11.8]} 25. Qxc6
{[%clk 0:00:36.2]} 25... Rxa1 {[%clk 0:02:11.9]} 26. Rxa1 {[%clk 0:00:35.8]}
26... Qb2 {[%clk 0:02:12]} 27. Re1 {[%clk 0:00:15.4]} 27... Qd2 {[%clk
0:02:11.2]} 28. Rd1 {[%clk 0:00:12.5]} 28... Qxe2 {[%clk 0:02:09.7]} 29. Qxd6
{[%clk 0:00:13.4]} 29... Qxc4 {[%clk 0:02:03.9]} 30. h4 {[%clk 0:00:13.7]} 30...
gxh4 {[%clk 0:02:01.8]} 31. Qe7 {[%clk 0:00:10.6]} 31... h3 {[%clk 0:01:59.6]}
32. Rd7 {[%clk 0:00:08.3]} 32... Qf1+ {[%clk 0:01:59.3]} 0-1

[Event "Late-Titled-Tuesday-Blitz-June-04-2024"]
[Site "Chess.com"]
[Date "2024.06.04"]
[Round "2"]
[White "merinasian"]
[Black "osielchesslover2011"]
[Result "1-0"]
[WhiteElo "2484"]
[BlackElo "2231"]
[TimeControl "180+1"]
[EndTime "14:15:38 PDT"]
[Termination "merinasian won by resignation"]

1. d4 {[%clk 0:02:46.3]} 1... Nf6 {[%clk 0:02:58.7]} 2. Nf3 {[%clk 0:02:44.1]}
2... g6 {[%clk 0:02:57.3]} 3. Bf4 {[%clk 0:02:42.8]} 3... Bg7 {[%clk 0:02:57.1]}
4. e3 {[%clk 0:02:43.4]} 4... d6 {[%clk 0:02:56.9]} 5. h3 {[%clk 0:02:43.9]}
5... O-O {[%clk 0:02:57.5]} 6. Be2 {[%clk 0:02:44.4]} 6... Nbd7 {[%clk
0:02:57.8]} 7. O-O {[%clk 0:02:44.8]} 7... c5 {[%clk 0:02:58.2]} 8. c4 {[%clk
0:02:44]} 8... b6 {[%clk 0:02:58.3]} 9. Nc3 {[%clk 0:02:42.7]} 9... Bb7 {[%clk
0:02:58.9]} 10. d5 {[%clk 0:02:42.3]} 10... a6 {[%clk 0:02:47.7]} 11. a4 {[%clk
0:02:36.8]} 11... Ne8 {[%clk 0:02:37.2]} 12. e4 {[%clk 0:02:31.2]} 12... Ne5
{[%clk 0:02:36.9]} 13. Nxe5 {[%clk 0:02:25.2]} 13... dxe5 {[%clk 0:02:36.7]} 14.
Be3 {[%clk 0:02:24.1]} 14... Nd6 {[%clk 0:02:35.1]} 15. a5 {[%clk 0:02:17.2]}
15... f5 {[%clk 0:02:31.3]} 16. axb6 {[%clk 0:02:09.7]} 16... Qxb6 {[%clk
0:02:21.9]} 17. Na4 {[%clk 0:02:09.2]} 17... Qc7 {[%clk 0:02:15.4]} 18. Nxc5
{[%clk 0:01:58.6]} 18... Bc8 {[%clk 0:02:08.7]} 19. b4 {[%clk 0:01:49.8]} 19...
fxe4 {[%clk 0:01:43.3]} 20. Qc2 {[%clk 0:01:40.3]} 20... Bf5 {[%clk 0:01:38.1]}
21. g4 {[%clk 0:01:27.7]} 21... Bc8 {[%clk 0:01:33.1]} 22. Nxe4 {[%clk
0:01:27.8]} 22... Nxe4 {[%clk 0:01:32.6]} 23. Qxe4 {[%clk 0:01:27.8]} 23... Rb8
{[%clk 0:01:29.9]} 24. c5 {[%clk 0:01:27]} 24... Bb7 {[%clk 0:01:12.5]} 25. Bxa6
{[%clk 0:01:23.7]} 25... Bxa6 {[%clk 0:01:04.5]} 26. Rxa6 {[%clk 0:01:23.6]}
26... Qb7 {[%clk 0:01:04.7]} 27. Rb6 {[%clk 0:01:23]} 27... Qa8 {[%clk
0:00:59.8]} 28. Rxb8 {[%clk 0:01:22]} 28... Rxb8 {[%clk 0:00:59.9]} 29. Rb1
{[%clk 0:01:15.3]} 29... e6 {[%clk 0:00:57.9]} 30. c6 {[%clk 0:01:13]} 30...
exd5 {[%clk 0:00:50.7]} 31. Qxd5+ {[%clk 0:01:12.9]} 31... Kh8 {[%clk
0:00:51.2]} 32. c7 {[%clk 0:01:08.6]} 1-0

[Event "Late-Titled-Tuesday-Blitz-June-04-2024"]
[Site "Chess.com"]
[Date "2024.06.04"]
[Round "2"]
[White "Valiyev_Shahin"]
[Black "Arimin1329"]
[Result "0-1"]
[WhiteElo "2554"]
[BlackElo "2360"]
[TimeControl "180+1"]
[EndTime "14:15:39 PDT"]
[Termination "Arimin1329 won by checkmate"]

1. e4 {[%clk 0:02:58.2]} 1... c6 {[%clk 0:02:58.5]} 2. d4 {[%clk 0:02:57.9]}
2... d5 {[%clk 0:02:59.4]} 3. Nc3 {[%clk 0:02:58.2]} 3... dxe4 {[%clk
0:02:59.4]} 4. Nxe4 {[%clk 0:02:59.1]} 4... Bf5 {[%clk 0:02:59.7]} 5. Ng3 {[%clk
0:02:58.8]} 5... Bg6 {[%clk 0:03:00.6]} 6. h4 {[%clk 0:02:58.7]} 6... h6 {[%clk
0:03:01.1]} 7. Nf3 {[%clk 0:02:59.4]} 7... Nd7 {[%clk 0:02:57]} 8. Bd3 {[%clk
0:02:59.9]} 8... Bxd3 {[%clk 0:02:55.3]} 9. Qxd3 {[%clk 0:03:00.8]} 9... Ngf6
{[%clk 0:02:56]} 10. Bf4 {[%clk 0:03:00.5]} 10... e6 {[%clk 0:02:56]} 11. O-O-O
{[%clk 0:02:59.9]} 11... Be7 {[%clk 0:02:49.5]} 12. Kb1 {[%clk 0:02:56.9]} 12...
Qb6 {[%clk 0:02:45.9]} 13. Ne4 {[%clk 0:02:54.8]} 13... Nxe4 {[%clk 0:02:41.6]}
14. Qxe4 {[%clk 0:02:54.7]} 14... Nf6 {[%clk 0:02:42]} 15. Qe2 {[%clk
0:02:55.1]} 15... O-O-O {[%clk 0:02:39.5]} 16. c4 {[%clk 0:02:50.2]} 16... Ba3
{[%clk 0:02:29.5]} 17. b3 {[%clk 0:02:48.4]} 17... Qa5 {[%clk 0:02:20.2]} 18.
Ne5 {[%clk 0:02:43.7]} 18... Rhf8 {[%clk 0:02:19.4]} 19. Qf3 {[%clk 0:02:31.4]}
19... Qb6 {[%clk 0:02:06.1]} 20. c5 {[%clk 0:02:20]} 20... Qa6 {[%clk
0:01:59.4]} 21. Nc4 {[%clk 0:02:16.4]} 21... Nd5 {[%clk 0:01:53.2]} 22. Bh2
{[%clk 0:02:12.7]} 22... b5 {[%clk 0:01:36]} 23. Nd6+ {[%clk 0:02:03.3]} 23...
Kd7 {[%clk 0:01:27.2]} 24. Qg3 {[%clk 0:01:47.9]} 24... Bb4 {[%clk 0:01:20.1]}
25. Ne4 {[%clk 0:01:44.7]} 25... Ke8 {[%clk 0:01:15.1]} 26. Qxg7 {[%clk
0:01:41.8]} 26... f5 {[%clk 0:01:08.8]} 27. Nd6+ {[%clk 0:01:38.9]} 27... Rxd6
{[%clk 0:01:08.5]} 28. Bxd6 {[%clk 0:01:24.3]} 28... Nc3+ {[%clk 0:01:06.9]} 29.
Kc1 {[%clk 0:01:24.9]} 29... Qa3+ {[%clk 0:01:06.3]} 30. Kd2 {[%clk 0:01:23.4]}
30... Qxa2+ {[%clk 0:01:00.9]} 31. Ke3 {[%clk 0:01:24]} 31... Qe2+ {[%clk
0:00:49.9]} 32. Kf4 {[%clk 0:01:24.1]} 32... Qxf2+ {[%clk 0:00:36.1]} 33. Ke5
{[%clk 0:01:24.6]} 33... Qe3# {[%clk 0:00:34.5]} 0-1

[Event "Late-Titled-Tuesday-Blitz-June-04-2024"]
[Site "Chess.com"]
[Date "2024.06.04"]
[Round "2"]
[White "SoCalJuniorChess"]
[Black "ExchangeAB"]
[Result "0-1"]
[WhiteElo "2199"]
[BlackElo "2467"]
[TimeControl "180+1"]
[EndTime "14:15:39 PDT"]
[Termination "ExchangeAB won by resignation"]

1. d4 {[%clk 0:03:00.9]} 1... d5 {[%clk 0:03:00.2]} 2. Nc3 {[%clk 0:03:00.7]}
2... Nf6 {[%clk 0:02:59.3]} 3. Bf4 {[%clk 0:03:00.4]} 3... e6 {[%clk 0:02:59.8]}
4. Nb5 {[%clk 0:02:59.7]} 4... Na6 {[%clk 0:02:57.4]} 5. e3 {[%clk 0:02:58.7]}
5... Be7 {[%clk 0:02:56.9]} 6. Nf3 {[%clk 0:02:57.7]} 6... O-O {[%clk
0:02:56.4]} 7. Be2 {[%clk 0:02:53.9]} 7... c6 {[%clk 0:02:55.8]} 8. Nc3 {[%clk
0:02:53.6]} 8... Nc7 {[%clk 0:02:55.9]} 9. O-O {[%clk 0:02:50.9]} 9... Nce8
{[%clk 0:02:56]} 10. Ne5 {[%clk 0:02:45.1]} 10... Nd6 {[%clk 0:02:49.4]} 11. Rb1
{[%clk 0:02:37]} 11... Nde4 {[%clk 0:02:47.3]} 12. Nxe4 {[%clk 0:02:36.7]} 12...
Nxe4 {[%clk 0:02:47.2]} 13. c4 {[%clk 0:02:36.7]} 13... Nd6 {[%clk 0:02:42.6]}
14. c5 {[%clk 0:02:36.2]} 14... Ne4 {[%clk 0:02:42.7]} 15. f3 {[%clk 0:02:35.7]}
15... Nf6 {[%clk 0:02:41.2]} 16. Qc2 {[%clk 0:02:35.9]} 16... Nd7 {[%clk
0:02:40.7]} 17. Rfd1 {[%clk 0:02:34.6]} 17... Nxe5 {[%clk 0:02:40.4]} 18. Bxe5
{[%clk 0:02:34.5]} 18... Bf6 {[%clk 0:02:38.4]} 19. Bxf6 {[%clk 0:02:32.1]}
19... Qxf6 {[%clk 0:02:39.3]} 20. e4 {[%clk 0:02:32.4]} 20... dxe4 {[%clk
0:02:37.8]} 21. fxe4 {[%clk 0:02:33.3]} 21... Qg5 {[%clk 0:02:32.4]} 22. Qd2
{[%clk 0:02:26.4]} 22... Qxd2 {[%clk 0:02:28.3]} 23. Rxd2 {[%clk 0:02:26.5]}
23... Rd8 {[%clk 0:02:29.2]} 24. Bf3 {[%clk 0:02:25.6]} 24... Kf8 {[%clk
0:02:24.7]} 25. b4 {[%clk 0:02:14]} 25... a6 {[%clk 0:02:22.5]} 26. a4 {[%clk
0:02:13.5]} 26... Ke7 {[%clk 0:02:22.1]} 27. Rbd1 {[%clk 0:02:02]} 27... Bd7
{[%clk 0:02:17.5]} 28. d5 {[%clk 0:02:01.4]} 28... cxd5 {[%clk 0:02:17.4]} 29.
exd5 {[%clk 0:02:01.4]} 29... Rab8 {[%clk 0:02:09.3]} 30. d6+ {[%clk 0:02:01]}
30... Ke8 {[%clk 0:02:04.3]} 31. a5 {[%clk 0:02:01.9]} 31... Bc6 {[%clk
0:02:00.6]} 32. Bxc6+ {[%clk 0:02:00.1]} 32... bxc6 {[%clk 0:02:01.5]} 33. Rd4
{[%clk 0:02:00.5]} 33... Kd7 {[%clk 0:02:00.6]} 34. Rf1 {[%clk 0:01:54.5]} 34...
Rf8 {[%clk 0:02:00.4]} 35. Kf2 {[%clk 0:01:50.3]} 35... e5 {[%clk 0:01:58.5]}
36. Re4 {[%clk 0:01:49.9]} 36... Rbe8 {[%clk 0:01:57.8]} 37. Ke3 {[%clk
0:01:48.5]} 37... f5 {[%clk 0:01:57.4]} 38. Rh4 {[%clk 0:01:47.5]} 38... h6
{[%clk 0:01:57.2]} 39. Rc4 {[%clk 0:01:46.9]} 39... g5 {[%clk 0:01:56.4]} 40.
Re1 {[%clk 0:01:46]} 40... h5 {[%clk 0:01:53.5]} 41. Kf3 {[%clk 0:01:45.5]}
41... h4 {[%clk 0:01:49.6]} 42. h3 {[%clk 0:01:45.3]} 42... e4+ {[%clk
0:01:48.9]} 43. Kf2 {[%clk 0:01:44.3]} 43... Re5 {[%clk 0:01:48.3]} 44. g3
{[%clk 0:01:43.9]} 44... hxg3+ {[%clk 0:01:47.8]} 45. Kxg3 {[%clk 0:01:44.8]}
45... f4+ {[%clk 0:01:46.7]} 46. Kg4 {[%clk 0:01:45]} 46... e3 {[%clk
0:01:46.7]} 47. h4 {[%clk 0:01:45.5]} 47... f3 {[%clk 0:01:43.7]} 48. hxg5
{[%clk 0:01:19]} 48... f2 {[%clk 0:01:43]} 49. Rcc1 {[%clk 0:01:19.9]} 49...
fxe1=Q {[%clk 0:01:41]} 50. Rxe1 {[%clk 0:01:20.8]} 50... Rg8 {[%clk 0:01:38.9]}
51. Rh1 {[%clk 0:01:18.7]} 51... Rgxg5+ {[%clk 0:01:37.8]} 52. Kf4 {[%clk
0:01:19.2]} 52... Rgf5+ {[%clk 0:01:37.6]} 53. Kg4 {[%clk 0:01:19.4]} 53... Rf7
{[%clk 0:01:36.2]} 54. Rh8 {[%clk 0:01:18.4]} 54... e2 {[%clk 0:01:35.9]} 55.
Ra8 {[%clk 0:01:18.2]} 55... e1=Q {[%clk 0:01:34.1]} 56. Ra7+ {[%clk 0:01:17.8]}
56... Ke6 {[%clk 0:01:33.9]} 0-1

[Event "Late-Titled-Tuesday-Blitz-June-04-2024"]
[Site "Chess.com"]
[Date "2024.06.04"]
[Round "2"]
[White "PNEPaul"]
[Black "Laico"]
[Result "1-0"]
[WhiteElo "1934"]
[BlackElo "2406"]
[TimeControl "180+1"]
[EndTime "14:15:39 PDT"]
[Termination "PNEPaul won by resignation"]

1. e4 {[%clk 0:02:19.7]} 1... e6 {[%clk 0:02:59.8]} 2. d4 {[%clk 0:02:19.1]}
2... d5 {[%clk 0:02:58.7]} 3. e5 {[%clk 0:02:19.2]} 3... c5 {[%clk 0:02:58.6]}
4. Qg4 {[%clk 0:02:19.1]} 4... cxd4 {[%clk 0:02:58.4]} 5. Nf3 {[%clk 0:02:19.2]}
5... Nc6 {[%clk 0:02:58.3]} 6. Bd3 {[%clk 0:02:19.1]} 6... f5 {[%clk 0:02:53.7]}
7. Qg3 {[%clk 0:02:18.4]} 7... Qc7 {[%clk 0:02:50.5]} 8. O-O {[%clk 0:02:17]}
8... Nb4 {[%clk 0:02:47.6]} 9. Nxd4 {[%clk 0:02:14.9]} 9... Nxd3 {[%clk
0:02:47.6]} 10. cxd3 {[%clk 0:02:14.8]} 10... Bd7 {[%clk 0:02:47.7]} 11. Nc3
{[%clk 0:02:06.7]} 11... a6 {[%clk 0:02:45.5]} 12. Re1 {[%clk 0:01:59.7]} 12...
Bc5 {[%clk 0:02:39.7]} 13. Qxg7 {[%clk 0:01:53.5]} 13... Bxd4 {[%clk 0:02:27.9]}
14. Qxh8 {[%clk 0:01:52.8]} 14... O-O-O {[%clk 0:02:28]} 15. Qxh7 {[%clk
0:01:50]} 15... Bxe5 {[%clk 0:02:27.3]} 16. Bg5 {[%clk 0:01:41.2]} 16... Nf6
{[%clk 0:02:17.9]} 17. Bxf6 {[%clk 0:01:33.2]} 17... Bxf6 {[%clk 0:02:18.8]} 18.
Rac1 {[%clk 0:01:32.7]} 18... Bc6 {[%clk 0:02:11.5]} 19. Qxc7+ {[%clk
0:01:28.9]} 19... Kxc7 {[%clk 0:02:12.4]} 20. Rxe6 {[%clk 0:01:26]} 20... Bd4
{[%clk 0:02:12.6]} 21. Rh6 {[%clk 0:01:18.4]} 21... Kb8 {[%clk 0:02:08.7]} 22.
Re1 {[%clk 0:01:17.2]} 22... Rg8 {[%clk 0:01:55.5]} 23. Ne2 {[%clk 0:01:06.6]}
23... Bxb2 {[%clk 0:01:54.5]} 24. Nf4 {[%clk 0:01:01.4]} 24... d4 {[%clk
0:01:53.9]} 25. Kf1 {[%clk 0:00:58.7]} 25... Bc3 {[%clk 0:01:53.8]} 26. Re7
{[%clk 0:00:56.9]} 26... Bd2 {[%clk 0:01:51.3]} 27. g3 {[%clk 0:00:51.1]} 27...
Bb4 {[%clk 0:01:45.2]} 28. Reh7 {[%clk 0:00:48.2]} 28... Re8 {[%clk 0:01:43.2]}
29. Rh8 {[%clk 0:00:46.7]} 29... Rxh8 {[%clk 0:01:40]} 30. Rxh8+ {[%clk
0:00:46.6]} 30... Kc7 {[%clk 0:01:40.3]} 31. Ke2 {[%clk 0:00:46.7]} 31... Kd6
{[%clk 0:01:34]} 32. h4 {[%clk 0:00:44.7]} 32... Ke5 {[%clk 0:01:32.8]} 33. h5
{[%clk 0:00:44.8]} 33... Kf6 {[%clk 0:01:32.5]} 34. h6 {[%clk 0:00:42.3]} 34...
Bd6 {[%clk 0:01:30.9]} 35. Rg8 {[%clk 0:00:33.5]} 1-0

[Event "Late-Titled-Tuesday-Blitz-June-04-2024"]
[Site "Chess.com"]
[Date "2024.06.04"]
[Round "2"]
[White "Marielchessy"]
[Black "ivanquiroga"]
[Result "0-1"]
[WhiteElo "2325"]
[BlackElo "2546"]
[TimeControl "180+1"]
[EndTime "14:15:52 PDT"]
[Termination "ivanquiroga won by resignation"]

1. e4 {[%clk 0:03:00.9]} 1... e5 {[%clk 0:02:59.7]} 2. Nf3 {[%clk 0:03:00.8]}
2... Nc6 {[%clk 0:02:57.4]} 3. Bc4 {[%clk 0:03:00.7]} 3... Bc5 {[%clk
0:02:55.8]} 4. c3 {[%clk 0:03:00.5]} 4... Nf6 {[%clk 0:02:56]} 5. d3 {[%clk
0:03:00.7]} 5... O-O {[%clk 0:02:55.7]} 6. Bb3 {[%clk 0:02:59.7]} 6... Be7
{[%clk 0:02:54.8]} 7. O-O {[%clk 0:02:59.6]} 7... d6 {[%clk 0:02:54.5]} 8. a4
{[%clk 0:02:58.2]} 8... a6 {[%clk 0:02:53.7]} 9. Nbd2 {[%clk 0:02:57]} 9... h6
{[%clk 0:02:53.6]} 10. Nc4 {[%clk 0:02:56.7]} 10... Be6 {[%clk 0:02:52.1]} 11.
h3 {[%clk 0:02:56.1]} 11... Qd7 {[%clk 0:02:51.7]} 12. Ne3 {[%clk 0:02:56]}
12... Nh7 {[%clk 0:02:48.6]} 13. Nh2 {[%clk 0:02:53.2]} 13... Bg5 {[%clk
0:02:44.8]} 14. Neg4 {[%clk 0:02:48.8]} 14... Bxc1 {[%clk 0:02:43.9]} 15. Rxc1
{[%clk 0:02:48.2]} 15... Ng5 {[%clk 0:02:38.7]} 16. f4 {[%clk 0:02:46.8]} 16...
exf4 {[%clk 0:02:38.1]} 17. Rxf4 {[%clk 0:02:41.6]} 17... Ne5 {[%clk 0:02:36.7]}
18. Nf2 {[%clk 0:02:35.6]} 18... Bxb3 {[%clk 0:02:27.4]} 19. Qxb3 {[%clk
0:02:34.8]} 19... b5 {[%clk 0:02:24.7]} 20. d4 {[%clk 0:02:33.7]} 20... Nc4
{[%clk 0:02:23]} 21. Nhg4 {[%clk 0:02:14]} 21... Ne6 {[%clk 0:02:19.8]} 22. Rf3
{[%clk 0:02:13.4]} 22... Nd2 {[%clk 0:02:19.5]} 23. Qd1 {[%clk 0:02:13.3]} 23...
Nxf3+ {[%clk 0:02:19.4]} 24. Qxf3 {[%clk 0:02:13.5]} 24... Ng5 {[%clk
0:02:16.6]} 25. Qf4 {[%clk 0:02:12]} 25... f5 {[%clk 0:02:16.3]} 26. exf5 {[%clk
0:02:03.4]} 26... Rxf5 {[%clk 0:02:15.9]} 27. Qg3 {[%clk 0:02:03.8]} 27... Kh8
{[%clk 0:02:05.7]} 28. h4 {[%clk 0:02:03.3]} 28... Nh7 {[%clk 0:02:04.2]} 29.
Re1 {[%clk 0:02:01]} 29... Re8 {[%clk 0:02:02.7]} 30. Rxe8+ {[%clk 0:01:59.3]}
30... Qxe8 {[%clk 0:02:03.6]} 31. axb5 {[%clk 0:01:59.2]} 31... axb5 {[%clk
0:02:03.3]} 32. Kh2 {[%clk 0:01:58.5]} 32... Rf8 {[%clk 0:02:00.2]} 33. Qd3
{[%clk 0:01:53.8]} 33... Nf6 {[%clk 0:01:57.5]} 34. Ne3 {[%clk 0:01:48.5]} 34...
d5 {[%clk 0:01:51.2]} 35. Neg4 {[%clk 0:01:20.4]} 35... Nxg4+ {[%clk 0:01:49.9]}
36. Nxg4 {[%clk 0:01:19.8]} 36... Qe4 {[%clk 0:01:42]} 37. Qg3 {[%clk
0:01:14.4]} 37... Rf1 {[%clk 0:01:35]} 38. Ne5 {[%clk 0:01:12.1]} 38... Qe1
{[%clk 0:01:19.6]} 39. Ng6+ {[%clk 0:00:59.7]} 39... Kh7 {[%clk 0:01:16.5]} 40.
Nf8+ {[%clk 0:00:55.6]} 40... Kg8 {[%clk 0:01:16.3]} 41. Qxe1 {[%clk 0:00:54.3]}
41... Rxe1 {[%clk 0:01:15.4]} 42. Nd7 {[%clk 0:00:54]} 42... Re2 {[%clk
0:01:11.6]} 0-1